fUSD/lending_fUSD_20240823
["ID","MTS","AMOUNT","RATE_DAILY","PERIOD"]
[335673617,1724415043752,-280.005645,0.00010999,2]
[335673618,1724415043762,-280.005645,0.00010999,2]
[335673619,1724415043771,-151.0,0.00010999,2]
[335673620,1724415043781,-104104.77763112,0.00011,2]
[335673621,1724415043802,-1004.87542467,0.00011,2]
[335673622,1724415043814,-250.0,0.00011,2]
[335673625,1724415045657,-493.93029625,0.00010958,2]
[335673626,1724415045666,-1190.7474535,0.00011,2]
[335673634,1724415050053,593.72655377,0.00025,90]
[335673635,1724415060054,593.72655377,0.00025,90]
[335673639,1724415162607,170.68681207,0.00010009,2]
[335673641,1724415199868,12522.8114,9.997e-05,2]
[335673642,1724415204710,1000.0,0.00027,120]
[335673643,1724415205127,1000.0,0.00027,120]
[335673648,1724415239194,500.0,0.00027,120]
[335673650,1724415261873,5120.0,0.00027,120]
[335673651,1724415261952,200.0,0.00027,120]
[335673652,1724415365039,3047.36417362,0.00010009,2]
[335673654,1724415557142,267.8,9.208e-05,2]
[335673661,1724415723593,309.33153452,0.00025,90]
[335673665,1724415772193,5000.0,0.00025,60]
[335673667,1724415778588,309.33153452,0.00025,90]
[335673668,1724415805135,1000.0,0.00027,120]
[335673669,1724415806991,1000.0,0.00027,120]
[335673671,1724415840744,500.0,0.00027,120]
[335673672,1724415863409,200.0,0.00027,120]
[335673673,1724415868664,2935.6915898,0.00027,120]
[335673676,1724415917789,500.0,0.00027,120]
[335673677,1724415930223,500.0,0.00027,120]
[335673678,1724415943210,500.0,0.00027,120]
[335673680,1724415994217,750.0,0.00025,60]
[335673682,1724416032990,38863.00517538,0.0001,2]
[335673683,1724416041636,150.0,0.0001,2]
[335673688,1724416061575,514.21158308,0.00027,120]
[335673689,1724416072786,500.0,0.00027,120]
[335673692,1724416086977,254.41,8.219e-05,2]
[335673702,1724416157253,317.01806701,0.00010009,2]
[335673705,1724416184522,266.74906548,9.962e-05,2]
[335673719,1724416199482,266.74906548,9.962e-05,2]
[335673725,1724416232059,-295.33202042,0.00010062,2]
[335673726,1724416232071,-412.46797958,0.00010062,2]
[335673727,1724416232080,-140.52701966,0.00010162,2]
[335673729,1724416237854,-29.82298034,0.00010162,2]
[335673730,1724416237863,-151.64,0.00010204,2]
[335673731,1724416237873,-800.0,0.00010471,2]
[335673732,1724416237883,-254.41,0.00010481,2]
[335673733,1724416237892,-1187.0,0.000107,2]
[335673734,1724416237911,-2806.0,0.00010845,2]
[335673735,1724416237920,-863.52701966,0.00010899,2]
[335673736,1724416237989,-870.0340065,0.00010899,2]
[335673737,1724416238072,-675.69239271,0.00010899,2]
[335673761,1724416246067,-2925.7355855,0.00010899,2]
[335673762,1724416246124,-3559.9489424,0.00010899,2]
[335673766,1724416259708,963.12331403,0.00027,120]
[335673767,1724416402976,1000.0,0.00027,120]
[335673768,1724416403400,1000.0,0.00027,120]
[335673769,1724416437157,500.0,0.00027,120]
[335673770,1724416454404,1235.62,9.966e-05,2]
[335673771,1724416459396,200.0,0.00027,120]
[335673772,1724416486658,3000.0,0.00027,120]
[335673777,1724416597863,172.87,9.937e-05,2]
[335673779,1724416614273,2500.0,0.00027,120]
[335673780,1724416621671,246.16,8.219e-05,2]
[335673782,1724416643146,250.0,9.947e-05,2]
[335673783,1724416646479,3027.705373,0.0001,2]
[335673786,1724416821749,1050.0,0.0001,2]
[335673792,1724416903547,1000.0,0.0001,4]
[335673793,1724416957761,3475.55,9.838e-05,2]
[335673794,1724416958017,1000.0,9.842e-05,2]
[335673795,1724417002566,1000.0,0.00027,120]
[335673796,1724417002986,1000.0,0.00027,120]
[335673797,1724417035735,500.0,0.00027,120]
[335673799,1724417047687,248.36,9.83e-05,2]
[335673801,1724417057123,200.0,0.00027,120]
[335673803,1724417108741,171.67,9.783e-05,2]
[335673804,1724417125397,155.04336113,0.00010009,2]
[335673808,1724417162168,233.85,8.219e-05,2]
[335673809,1724417171980,490.17,9.899e-05,2]
[335673810,1724417191983,15535.94916928,0.00010009,2]
[335673849,1724417431948,-628.42,0.00010026,2]
[335673850,1724417431959,-293.41476327,0.00010026,2]
[335673851,1724417431971,-2248.6741294,0.00010026,2]
[335673852,1724417431982,-235.36200484,0.00010026,2]
[335673853,1724417431991,-151.64,0.00010062,2]
[335673854,1724417432001,-155.0,0.00010062,2]
[335673855,1724417432011,-400.0,0.000102,3]
[335673856,1724417432020,-300.0,0.0001024,2]
[335673857,1724417432028,-310.75368077,0.0001024,2]
[335673858,1724417432041,-1297.1907587,0.0001024,2]
[335673859,1724417432246,-3750.05355569,0.00010241,2]
[335673860,1724417432266,-1676.12452515,0.00010241,2]
[335673861,1724417432286,-316.65488026,0.00010241,2]
[335673862,1724417432297,-452.1670389,0.00010241,2]
[335673863,1724417432306,-800.0,0.000103,3]
[335673864,1724417432316,-1300.0,0.000104,3]
[335673865,1724417432326,-150.0,0.00010411,2]
[335673866,1724417432335,-233.85,0.00010471,2]
[335673867,1724417432344,-887.81,0.00010471,2]
[335673868,1724417432353,-7718.32545372,0.00010471,2]
[335673869,1724417432364,-2852.7448324,0.00010471,2]
[335673870,1724417432375,-1123.25876989,0.00010471,2]
[335673875,1724417438336,-410.71105482,0.00010471,2]
[335673876,1724417438348,-343.26358931,0.00010471,2]
[335673877,1724417438360,-1120.66502401,0.00010471,2]
[335673878,1724417438371,-140.75127585,0.00010471,2]
[335673879,1724417438381,-142.51161615,0.00010471,2]
[335673880,1724417438392,-174.34335733,0.00010471,2]
[335673881,1724417438401,-252.05410372,0.000105,3]
[335673882,1724417438416,-998.52381322,0.000105,3]
[335673884,1724417438428,-449.42208306,0.000105,3]
[335673886,1724417438438,-1551.50990693,0.000106,3]
[335673888,1724417438450,-648.49009307,0.000106,3]
[335673890,1724417438459,-515.27605672,0.00010699,2]
[335673892,1724417438469,-363.26339441,0.000107,2]
[335673895,1724417438484,-136.72660559,0.000107,2]
[335673897,1724417438494,-400.0,0.000107,3]
[335673899,1724417438503,-852.06979,0.0001079,2]
[335673901,1724417438513,-852.06979,0.0001079,2]
[335673902,1724417438523,-852.0698,0.0001079,2]
[335673904,1724417438532,-852.0698,0.0001079,2]
[335673906,1724417438542,-2173.99421441,0.00010797,2]
[335673909,1724417438553,-28837.17204591,0.00010797,2]
[335673911,1724417438564,-12212.22040255,0.00010797,2]
[335673913,1724417438575,-1780.85001017,0.00010797,2]
[335673916,1724417438594,-14042.43253206,0.00010797,2]
[335673918,1724417438604,-472.09535236,0.00010797,2]
[335673920,1724417438615,-1886.88,0.00010797,2]
[335674029,1724417440157,-527.39556223,0.00010797,2]
[335674030,1724417440266,-3906.74418031,0.00010797,2]
[335674031,1724417440276,-1000.0,0.00010797,2]
[335674032,1724417440287,-2500.0,0.00010797,2]
[335674033,1724417440295,-375.31696461,0.00010797,2]
[335674034,1724417440305,-12323.66709432,0.000108,2]
[335674035,1724417440314,-400.0,0.000108,3]
[335674036,1724417440324,-253.32919331,0.00010861,2]
[335674037,1724417440334,-8229.3478,0.0001088,2]
[335674038,1724417440344,-1938.7076,0.0001088,2]
[335674039,1724417440353,-3237.1381,0.0001089,2]
[335674040,1724417440362,-500.0,0.0001089,2]
[335674041,1724417440372,-4875.3059,0.0001089,2]
[335674042,1724417440381,-88479.2731,0.00010897,2]
[335674043,1724417440391,-194046.0893,0.00010897,2]
[335674044,1724417440400,-1000.0,0.00010897,2]
[335674045,1724417440410,-368.9649527,0.00010897,2]
[335674046,1724417440418,-368.96495268,0.00010899,2]
[335674047,1724417440430,-852.06979,0.00010899,2]
[335674048,1724417440440,-852.06979,0.00010899,2]
[335674049,1724417440448,-155.0,0.00010899,2]
[335674050,1724417440457,-165.74195783,0.000109,2]
[335674051,1724417440466,-183.97398844,0.000109,2]
[335674052,1724417440477,-163.71861537,0.000109,2]
[335674053,1724417440486,-400.0,0.000109,3]
[335674054,1724417440496,-309.58122108,0.000109,2]
[335674055,1724417440506,-309.58122108,0.000109,2]
[335674056,1724417440517,-309.58122108,0.000109,2]
[335674057,1724417440526,-368.96495268,0.000109,2]
[335674058,1724417440537,-309.58122108,0.000109,2]
[335674059,1724417440546,-1000.0,0.000109,2]
[335674060,1724417440558,-309.58122108,0.000109,2]
[335674061,1724417440567,-309.58122108,0.000109,2]
[335674062,1724417440576,-309.58122108,0.000109,2]
[335674063,1724417440586,-309.58122108,0.000109,2]
[335674064,1724417440595,-500.0,0.00010912,2]
[335674065,1724417440604,-150.82,0.00010948,2]
[335674066,1724417440613,-20000.0,0.00010958,2]
[335674067,1724417440622,-500.0,0.00010958,2]
[335674068,1724417440631,-500.0,0.00010958,2]
[335674069,1724417440643,-500.0,0.00010958,2]
[335674070,1724417440652,-500.0,0.00010958,2]
[335674071,1724417440661,-500.0,0.00010958,2]
[335674072,1724417440673,-500.0,0.00010958,2]
[335674073,1724417440683,-500.0,0.00010958,2]
[335674074,1724417440692,-500.0,0.00010958,2]
[335674075,1724417440701,-500.0,0.00010958,2]
[335674076,1724417440710,-151.0,0.00010958,2]
[335674077,1724417440720,-500.0,0.00010958,2]
[335674078,1724417440729,-500.0,0.00010958,2]
[335674079,1724417440738,-500.0,0.00010958,2]
[335674080,1724417440747,-500.0,0.00010958,2]
[335674081,1724417440758,-500.0,0.00010958,2]
[335674082,1724417440767,-408.70465492,0.00010958,2]
[335674083,1724417440778,-459.93083446,0.00010958,2]
[335674084,1724417440787,-500.0,0.00010958,2]
[335674085,1724417440796,-588.23176503,0.00010958,2]
[335674086,1724417440806,-500.0,0.00010958,2]
[335674087,1724417440815,-500.0,0.00010958,2]
[335674088,1724417440824,-352.59476066,0.00010958,2]
[335674089,1724417440834,-500.0,0.00010958,2]
[335674090,1724417440844,-500.0,0.00010958,2]
[335674091,1724417440853,-500.0,0.00010958,2]
[335674092,1724417440864,-500.0,0.00010958,2]
[335674093,1724417440873,-500.0,0.00010958,2]
[335674094,1724417440885,-500.0,0.00010958,2]
[335674095,1724417440894,-597.77778371,0.00010958,2]
[335674096,1724417440904,-500.0,0.00010958,2]
[335674097,1724417440914,-500.0,0.00010958,2]
[335674098,1724417440925,-500.0,0.00010958,2]
[335674099,1724417440934,-151.0,0.00010958,2]
[335674100,1724417440943,-500.0,0.00010958,2]
[335674101,1724417440952,-151.0,0.00010958,2]
[335674102,1724417440962,-151.0,0.00010958,2]
[335674103,1724417440972,-500.0,0.00010958,2]
[335674104,1724417440981,-151.0,0.00010958,2]
[335674105,1724417440990,-500.0,0.00010958,2]
[335674106,1724417440999,-500.0,0.00010958,2]
[335674107,1724417441010,-500.0,0.00010958,2]
[335674108,1724417441021,-500.0,0.00010958,2]
[335674109,1724417441031,-500.0,0.00010958,2]
[335674110,1724417441041,-500.0,0.00010958,2]
[335674111,1724417441050,-500.0,0.00010958,2]
[335674112,1724417441060,-500.0,0.00010958,2]
[335674113,1724417441070,-500.0,0.00010958,2]
[335674114,1724417441080,-567.34,0.00010958,2]
[335674115,1724417441090,-681.37,0.00010958,2]
[335674116,1724417441099,-151.0,0.00010958,2]
[335674117,1724417441107,-500.0,0.00010958,2]
[335674118,1724417441117,-500.0,0.00010958,2]
[335674119,1724417441126,-500.0,0.00010958,2]
[335674120,1724417441135,-500.0,0.00010958,2]
[335674121,1724417441144,-1745.41,0.00010958,2]
[335674122,1724417441153,-151.0,0.00010958,2]
[335674123,1724417441161,-500.0,0.00010958,2]
[335674124,1724417441171,-500.0,0.00010958,2]
[335674125,1724417441180,-510.22,0.00010958,2]
[335674126,1724417441189,-500.0,0.00010958,2]
[335674127,1724417441198,-500.0,0.00010958,2]
[335674128,1724417441207,-500.0,0.00010958,2]
[335674129,1724417441216,-500.0,0.00010958,2]
[335674130,1724417441225,-500.0,0.00010958,2]
[335674131,1724417441234,-151.0,0.00010958,2]
[335674132,1724417441247,-500.0,0.00010958,2]
[335674133,1724417441258,-500.0,0.00010958,2]
[335674134,1724417441267,-500.0,0.00010958,2]
[335674135,1724417441276,-500.0,0.00010958,2]
[335674136,1724417441286,-500.0,0.00010958,2]
[335674137,1724417441296,-500.0,0.00010958,2]
[335674138,1724417441305,-968.59,0.00010958,2]
[335674139,1724417441314,-500.0,0.00010958,2]
[335674140,1724417441325,-151.0,0.00010958,2]
[335674141,1724417441335,-500.0,0.00010958,2]
[335674142,1724417441344,-500.0,0.00010958,2]
[335674143,1724417441353,-500.0,0.00010958,2]
[335674144,1724417441362,-500.0,0.00010958,2]
[335674145,1724417441371,-500.0,0.00010958,2]
[335674146,1724417441380,-500.0,0.00010958,2]
[335674147,1724417441390,-500.0,0.00010958,2]
[335674148,1724417441399,-500.0,0.00010958,2]
[335674149,1724417441408,-500.0,0.00010958,2]
[335674150,1724417441417,-518.79,0.00010958,2]
[335674151,1724417441427,-500.0,0.00010958,2]
[335674152,1724417441436,-500.0,0.00010958,2]
[335674153,1724417441445,-500.0,0.00010958,2]
[335674154,1724417441454,-500.0,0.00010958,2]
[335674155,1724417441463,-500.0,0.00010958,2]
[335674156,1724417441472,-500.0,0.00010958,2]
[335674157,1724417441481,-500.0,0.00010958,2]
[335674158,1724417441491,-500.0,0.00010958,2]
[335674159,1724417441500,-500.0,0.00010958,2]
[335674160,1724417441509,-500.0,0.00010958,2]
[335674161,1724417441517,-500.0,0.00010958,2]
[335674162,1724417441526,-500.0,0.00010958,2]
[335674163,1724417441535,-500.0,0.00010958,2]
[335674164,1724417441544,-500.0,0.00010958,2]
[335674165,1724417441553,-917.01,0.00010958,2]
[335674166,1724417441563,-673.07,0.00010958,2]
[335674167,1724417441572,-500.0,0.00010958,2]
[335674168,1724417441580,-500.0,0.00010958,2]
[335674169,1724417441589,-260.86,0.00010958,2]
[335674170,1724417441599,-500.0,0.00010958,2]
[335674171,1724417441608,-500.0,0.00010958,2]
[335674172,1724417441617,-500.0,0.00010958,2]
[335674173,1724417441626,-500.0,0.00010958,2]
[335674174,1724417441635,-699.9,0.00010958,2]
[335674175,1724417441644,-180.221422,0.00010958,2]
[335674176,1724417441653,-500.0,0.00010958,2]
[335674177,1724417441662,-999.0,0.00010958,2]
[335674178,1724417441672,-500.0,0.00010958,2]
[335674179,1724417441681,-500.0,0.00010958,2]
[335674180,1724417441690,-500.0,0.00010958,2]
[335674181,1724417441699,-500.0,0.00010958,2]
[335674182,1724417441708,-151.0,0.00010958,2]
[335674183,1724417441718,-151.0,0.00010958,2]
[335674184,1724417441727,-151.0,0.00010958,2]
[335674185,1724417441736,-500.0,0.00010958,2]
[335674186,1724417441745,-500.0,0.00010958,2]
[335674187,1724417441755,-500.0,0.00010958,2]
[335674188,1724417441765,-500.0,0.00010958,2]
[335674189,1724417441776,-500.0,0.00010958,2]
[335674190,1724417441786,-500.0,0.00010958,2]
[335674191,1724417441796,-617.88417316,0.00010958,2]
[335674192,1724417441806,-521.57,0.00010958,2]
[335674193,1724417441818,-500.0,0.00010958,2]
[335674194,1724417441828,-500.0,0.00010958,2]
[335674195,1724417441838,-500.0,0.00010958,2]
[335674196,1724417441847,-500.0,0.00010958,2]
[335674197,1724417441856,-500.0,0.00010958,2]
[335674198,1724417441866,-500.0,0.00010958,2]
[335674199,1724417441875,-203.576718,0.00010958,2]
[335674200,1724417441885,-500.0,0.00010958,2]
[335674201,1724417441894,-500.0,0.00010958,2]
[335674202,1724417441903,-500.0,0.00010958,2]
[335674203,1724417441913,-500.0,0.00010958,2]
[335674204,1724417441923,-500.0,0.00010958,2]
[335674205,1724417441932,-200.0,0.00010959,2]
[335674206,1724417441942,-186.57,0.00010959,2]
[335674207,1724417441951,-180.22,0.00010959,2]
[335674208,1724417441960,-1500.0,0.00010959,2]
[335674209,1724417441969,-1638.6,0.00010959,2]
[335674210,1724417441978,-250.0,0.00010959,2]
[335674211,1724417441987,-150.0,0.00010959,2]
[335674212,1724417441996,-500.0,0.00010973,2]
[335674213,1724417442006,-500.0,0.00010973,2]
[335674214,1724417442015,-151.0,0.00010989,2]
[335674215,1724417442024,-151.0,0.00010989,2]
[335674216,1724417442035,-445.329302,0.00010989,2]
[335674217,1724417442046,-445.329302,0.00010989,2]
[335674218,1724417442055,-151.0,0.00010989,2]
[335674219,1724417442065,-489.08,0.00010989,2]
[335674220,1724417442075,-643.7,0.00010989,2]
[335674221,1724417442086,-267.34,0.00010989,2]
[335674222,1724417442095,-162.7,0.00010989,2]
[335674223,1724417442104,-500.0,0.00010989,2]
[335674224,1724417442114,-375.55,0.00010989,2]
[335674225,1724417442123,-500.0,0.00010989,2]
[335674226,1724417442133,-500.0,0.00010989,2]
[335674227,1724417442143,-681.37,0.00010989,2]
[335674228,1724417442154,-1745.41,0.00010989,2]
[335674229,1724417442164,-500.0,0.00010989,2]
[335674230,1724417442174,-500.0,0.00010989,2]
[335674231,1724417442183,-163.14,0.00010989,2]
[335674232,1724417442192,-151.0,0.00010989,2]
[335674233,1724417442203,-220.27,0.00010989,2]
[335674234,1724417442212,-500.0,0.00010989,2]
[335674235,1724417442221,-500.0,0.00010989,2]
[335674236,1724417442230,-968.59,0.00010989,2]
[335674237,1724417442242,-151.0,0.00010989,2]
[335674238,1724417442251,-500.0,0.00010989,2]
[335674239,1724417442261,-500.0,0.00010989,2]
[335674240,1724417442271,-500.0,0.00010989,2]
[335674241,1724417442282,-500.0,0.00010989,2]
[335674242,1724417442292,-500.0,0.00010989,2]
[335674243,1724417442302,-500.0,0.00010989,2]
[335674244,1724417442311,-500.0,0.00010989,2]
[335674245,1724417442324,-500.0,0.00010989,2]
[335674246,1724417442334,-500.0,0.00010989,2]
[335674247,1724417442344,-500.0,0.00010989,2]
[335674248,1724417442354,-500.0,0.00010989,2]
[335674249,1724417442363,-500.0,0.00010989,2]
[335674250,1724417442371,-500.0,0.00010989,2]
[335674251,1724417442381,-500.0,0.00010989,2]
[335674252,1724417442389,-500.0,0.00010989,2]
[335674253,1724417442399,-500.0,0.00010989,2]
[335674254,1724417442408,-500.0,0.00010989,2]
[335674255,1724417442417,-500.0,0.00010989,2]
[335674256,1724417442427,-917.01,0.00010989,2]
[335674257,1724417442436,-673.07,0.00010989,2]
[335674258,1724417442445,-500.0,0.00010989,2]
[335674259,1724417442454,-500.0,0.00010989,2]
[335674260,1724417442464,-242.74,0.00010989,2]
[335674261,1724417442473,-699.9,0.00010989,2]
[335674262,1724417442482,-999.0,0.00010989,2]
[335674263,1724417442492,-520.27,0.00010989,2]
[335674264,1724417442501,-500.0,0.00010989,2]
[335674265,1724417442510,-500.0,0.00010989,2]
[335674266,1724417442519,-151.0,0.00010989,2]
[335674267,1724417442528,-151.0,0.00010989,2]
[335674268,1724417442537,-202.431036,0.00010989,2]
[335674269,1724417442549,-624.42,0.00010989,2]
[335674270,1724417442558,-500.0,0.00010989,2]
[335674271,1724417442568,-500.0,0.00010989,2]
[335674272,1724417442578,-500.0,0.00010989,2]
[335674273,1724417442589,-500.0,0.00010989,2]
[335674274,1724417442598,-500.0,0.00010989,2]
[335674275,1724417442608,-500.0,0.00010989,2]
[335674276,1724417442619,-121551.29540793,0.0001099,4]
[335674277,1724417442629,-151.0,0.0001099,2]
[335674278,1724417442639,-151.0,0.0001099,2]
[335674279,1724417442648,-151.0,0.0001099,2]
[335674280,1724417442658,-151.0,0.0001099,2]
[335674281,1724417442668,-151.0,0.0001099,2]
[335674282,1724417442678,-151.0,0.0001099,2]
[335674283,1724417442687,-151.0,0.0001099,2]
[335674284,1724417442696,-151.0,0.0001099,2]
[335674285,1724417442706,-151.0,0.0001099,2]
[335674286,1724417442715,-445.329302,0.0001099,2]
[335674287,1724417442725,-445.329302,0.0001099,2]
[335674288,1724417442734,-151.0,0.0001099,2]
[335674289,1724417442743,-151.0,0.0001099,2]
[335674290,1724417442753,-151.0,0.0001099,2]
[335674292,1724417442762,-151.0,0.0001099,2]
[335674293,1724417442771,-151.0,0.0001099,2]
[335674294,1724417442780,-151.0,0.0001099,2]
[335674296,1724417442789,-151.0,0.0001099,2]
[335674298,1724417442798,-151.0,0.0001099,2]
[335674300,1724417442809,-151.0,0.0001099,2]
[335674302,1724417442818,-258.011286,0.0001099,2]
[335674304,1724417442827,-151.0,0.0001099,2]
[335674306,1724417442837,-157.70896675,0.00010993,2]
[335674322,1724417443020,-500.0,0.00010996,2]
[335674324,1724417443030,-500.0,0.00010996,2]
[335674326,1724417443039,-500.0,0.00010996,2]
[335674328,1724417443049,-500.0,0.00010996,2]
[335674330,1724417443058,-500.0,0.00010996,2]
[335674332,1724417443067,-500.0,0.00010996,2]
[335674334,1724417443076,-600.0,0.00010996,2]
[335674335,1724417443085,-500.0,0.00010996,2]
[335674337,1724417443095,-500.0,0.00010996,2]
[335674338,1724417443104,-500.0,0.00010996,2]
[335674339,1724417443113,-500.0,0.00010996,2]
[335674341,1724417443122,-500.0,0.00010996,2]
[335674343,1724417443131,-500.0,0.00010996,2]
[335674345,1724417443140,-639.87261788,0.00010996,2]
[335674346,1724417443149,-500.0,0.00010996,2]
[335674347,1724417443158,-500.0,0.00010996,2]
[335674349,1724417443167,-500.0,0.00010996,2]
[335674350,1724417443177,-151.0,0.00010997,2]
[335674351,1724417443186,-160.067348,0.00010997,2]
[335674352,1724417443195,-151.0,0.00010997,2]
[335674353,1724417443204,-151.0,0.00010997,2]
[335674354,1724417443214,-151.0,0.00010997,2]
[335674355,1724417443223,-151.0,0.00010997,2]
[335674356,1724417443233,-151.0,0.00010997,2]
[335674357,1724417443245,-151.0,0.00010997,2]
[335674358,1724417443254,-151.0,0.00010997,2]
[335674359,1724417443263,-151.0,0.00010997,2]
[335674360,1724417443272,-445.329302,0.00010997,2]
[335674361,1724417443282,-445.329302,0.00010997,2]
[335674362,1724417443292,-172.180167,0.00010997,2]
[335674363,1724417443301,-151.0,0.00010997,2]
[335674364,1724417443311,-151.0,0.00010997,2]
[335674365,1724417443321,-75266.003675,0.00010997,2]
[335674366,1724417443331,-11422.3692459,0.00010997,2]
[335674367,1724417443340,-151.0,0.00010997,2]
[335674368,1724417443349,-151.0,0.00010997,2]
[335674369,1724417443358,-1228.3587108,0.00010997,2]
[335674370,1724417443367,-189.991438,0.00010997,2]
[335674371,1724417443377,-151.0,0.00010997,2]
[335674372,1724417443386,-151.0,0.00010997,2]
[335674373,1724417443396,-500.0,0.00010997,2]
[335674374,1724417443405,-500.0,0.00010997,2]
[335674375,1724417443415,-500.0,0.00010997,2]
[335674376,1724417443426,-500.0,0.00010997,2]
[335674377,1724417443446,-500.0,0.00010997,2]
[335674378,1724417443455,-917.01,0.00010997,2]
[335674379,1724417443464,-673.07,0.00010997,2]
[335674380,1724417443473,-2780.5442899,0.00010997,2]
[335674381,1724417443482,-500.0,0.00010997,2]
[335674382,1724417443490,-151.0,0.00010997,2]
[335674383,1724417443499,-500.0,0.00010997,2]
[335674384,1724417443508,-500.0,0.00010997,2]
[335674385,1724417443517,-214.28849634,0.00010998,2]
[335674386,1724417443526,-578.56,0.00010998,2]
[335674387,1724417443535,-500.0,0.00010998,2]
[335674388,1724417443545,-500.0,0.00010998,2]
[335674390,1724417443554,-500.0,0.00010998,2]
[335674391,1724417443563,-337.40121489,0.00010998,2]
[335674392,1724417443572,-500.0,0.00010998,2]
[335674393,1724417443581,-500.0,0.00010998,2]
[335674394,1724417443591,-481.28286726,0.00010998,2]
[335674395,1724417443600,-500.0,0.00010998,2]
[335674396,1724417443609,-500.0,0.00010998,2]
[335674397,1724417443618,-500.0,0.00010998,2]
[335674398,1724417443627,-500.0,0.00010998,2]
[335674399,1724417443636,-500.0,0.00010998,2]
[335674400,1724417443645,-500.0,0.00010998,2]
[335674401,1724417443654,-500.0,0.00010998,2]
[335674402,1724417443663,-500.0,0.00010998,2]
[335674403,1724417443673,-500.0,0.00010998,2]
[335674404,1724417443685,-500.0,0.00010998,2]
[335674405,1724417443694,-500.0,0.00010998,2]
[335674406,1724417443703,-500.0,0.00010998,2]
[335674407,1724417443712,-500.0,0.00010998,2]
[335674408,1724417443721,-500.0,0.00010998,2]
[335674409,1724417443730,-500.0,0.00010998,2]
[335674410,1724417443739,-500.0,0.00010998,2]
[335674411,1724417443749,-500.0,0.00010998,2]
[335674412,1724417443758,-500.0,0.00010998,2]
[335674413,1724417443768,-500.0,0.00010998,2]
[335674414,1724417443778,-500.0,0.00010998,2]
[335674415,1724417443789,-500.0,0.00010998,2]
[335674416,1724417443799,-500.0,0.00010998,2]
[335674417,1724417443808,-500.0,0.00010998,2]
[335674418,1724417443819,-500.0,0.00010998,2]
[335674419,1724417443829,-500.0,0.00010998,2]
[335674420,1724417443838,-500.0,0.00010998,2]
[335674421,1724417443847,-632.30353802,0.00010998,2]
[335674422,1724417443855,-151.0,0.00010998,2]
[335674423,1724417443864,-151.0,0.00010998,2]
[335674424,1724417443873,-500.0,0.00010998,2]
[335674425,1724417443882,-500.0,0.00010998,2]
[335674426,1724417443891,-500.0,0.00010998,2]
[335674427,1724417443899,-232.67,0.00010998,2]
[335674428,1724417443909,-500.0,0.00010998,2]
[335674429,1724417443918,-438.25,0.00010998,2]
[335674430,1724417443927,-500.0,0.00010998,2]
[335674431,1724417443937,-500.0,0.00010998,2]
[335674432,1724417443946,-500.0,0.00010998,2]
[335674433,1724417443955,-500.0,0.00010998,2]
[335674434,1724417443966,-681.37,0.00010998,2]
[335674435,1724417443975,-151.0,0.00010998,2]